bitfinex-derivatives/quotes_SOLF0:USTF0_20250911
["timestamp","ask_amount","ask_price","bid_price","bid_amount"]
[1757556775035,7.25,224.76,224.74,1.629827]
[1757556775330,7.25,224.83,224.74,1.629827]
[1757556775538,7.25,224.81,224.76,1.629827]
[1757556775837,7.25,224.79,224.76,1.629827]
[1757556776044,7.25,224.77,224.76,1.629827]
[1757556776336,10.33651506,224.77,224.76,1.629827]
[1757556776539,3.08651506,224.77,224.76,1.629827]
[1757556776732,7.25,224.8,224.76,8.809827]
[1757556776933,3.08696825,224.79,224.68,7.18]
[1757556777134,7.25,224.83,224.68,7.18]
[1757556777334,7.46,224.88,224.68,7.18]
[1757556777533,7.46,224.86,224.68,7.18]
[1757556777838,3.5085834,224.85,224.68,7.18]
[1757556778034,3.5085834,224.84,224.68,7.18]
[1757556778232,7.46,224.89,224.83,1.629827]
[1757556778435,7.46,224.87,224.83,1.629827]
[1757556778635,7.46,224.85,224.83,1.629827]
[1757556778937,10.96808771,224.84,224.83,1.629827]
[1757556779133,7.46,224.84,224.83,1.629827]
[1757556780733,7.46,224.9,224.83,1.629827]
[1757556780938,3.50745235,224.89,224.86,1.629827]
[1757556781138,7.46,224.87,224.86,1.629827]
[1757556782438,2.0,224.91,224.86,1.629827]
[1757556782634,7.46,224.89,224.86,1.629827]
[1757556782944,7.46,224.9,224.86,1.629827]
[1757556784348,2.0,224.91,224.86,1.629827]
[1757556784539,3.50274744,224.9,224.86,1.629827]
[1757556784839,7.46,224.9,224.86,1.629827]
[1757556785740,2.0,224.91,224.86,1.629827]
[1757556785936,7.46,224.89,224.86,1.629827]
[1757556786150,7.46,224.9,224.86,1.629827]
[1757556786537,2.0,224.91,224.86,1.629827]
[1757556786734,3.50131934,224.9,224.86,1.629827]
[1757556786935,2.0,224.91,224.86,1.629827]
[1757556787136,7.46,224.89,224.82,1.629827]
[1757556787639,3.50106701,224.88,224.82,1.629827]
[1757556787842,7.46,224.9,224.84,1.629827]
[1757556788044,3.52335064,224.89,224.84,1.629827]
[1757556788344,7.46,224.9,224.84,1.629827]
[1757556788544,3.52403386,224.89,224.84,1.629827]
[1757556788746,3.0673908,224.88,224.84,1.629827]
[1757556789044,3.0673908,224.87,224.86,1.629827]
[1757556789235,7.46,224.9,224.86,8.479827]
[1757556789437,3.0674945,224.89,224.88,1.629827]
[1757556790048,3.07006071,224.89,224.88,1.629827]
[1757556790247,10.53006071,224.89,224.88,1.629827]
[1757556792050,7.46,224.88,224.87,1.629827]
[1757556792248,7.46,224.88,224.83,6.85]
[1757556792249,3.07006071,224.88,224.83,6.85]
[1757556792452,2.0,224.91,224.86,1.629827]
[1757556792752,3.069612,224.9,224.86,1.629827]
[1757556792941,3.069612,224.9,224.83,6.85]
[1757556792942,7.46,224.88,224.79,6.85]
[1757556793144,3.06909645,224.87,224.83,1.629827]
[1757556793346,7.46,224.9,224.83,1.629827]
[1757556793547,7.46,224.9,224.79,6.85]
[1757556793548,6.59049213,224.89,224.79,6.85]
[1757556793748,6.59049213,224.88,224.83,1.629827]
[1757556793954,3.06854902,224.87,224.83,1.629827]
[1757556794144,3.06854902,224.86,224.83,1.629827]
[1757556794350,7.46,224.9,224.83,1.629827]
[1757556794550,6.59001429,224.89,224.83,1.629827]
[1757556794750,7.46,224.87,224.83,1.629827]
[1757556794950,7.46,224.85,224.83,1.629827]
[1757556795252,7.46,224.85,224.79,6.85]
[1757556795550,7.46,224.85,224.83,1.629827]
[1757556796553,7.46,224.85,224.81,9.39524375]
[1757556797144,7.46,224.85,224.82,6.85]
[1757556797753,7.46,224.9,224.82,6.85]
[1757556798051,7.46,224.88,224.82,2.54524375]
[1757556798254,2.0,224.91,224.82,2.54524375]
[1757556798553,14.0511551,224.9,224.82,2.54524375]
[1757556798746,7.46,224.88,224.82,2.54524375]
[1757556802156,3.06929908,224.87,224.82,2.54524375]
[1757556802455,7.46,224.9,224.82,2.54524375]
[1757556802655,2.0,224.91,224.82,2.54524375]
[1757556802656,7.46,224.88,224.82,2.54524375]
[1757556802856,3.06930142,224.87,224.82,2.54524375]
[1757556803058,7.46,224.9,224.82,2.54524375]
[1757556803256,7.46,224.88,224.82,2.54524375]
[1757556803454,3.06916278,224.87,224.82,2.54524375]
[1757556803660,7.46,224.85,224.82,2.54524375]
[1757556804660,7.46,224.9,224.82,2.54524375]
[1757556804960,7.46,224.88,224.82,2.54524375]
[1757556805160,2.0,224.91,224.82,2.54524375]
[1757556805161,3.06960363,224.87,224.82,2.54524375]
[1757556805362,3.06960363,224.86,224.82,2.54524375]
[1757556805556,7.46,224.84,224.82,2.54524375]
[1757556805757,7.46,224.9,224.82,2.54524375]
[1757556806063,7.46,224.88,224.82,2.54524375]
[1757556806358,7.46,224.86,224.82,2.54524375]
[1757556806553,7.46,224.84,224.82,2.54524375]
[1757556807360,2.0,224.91,224.82,2.54524375]
[1757556807559,13.80355879,224.9,224.82,2.54524375]
[1757556807763,7.21,224.88,224.82,2.54524375]
[1757556807958,7.21,224.86,224.82,2.54524375]
[1757556808158,3.07010884,224.85,224.82,2.54524375]
[1757556808363,7.21,224.83,224.82,2.54524375]
[1757556811363,7.21,224.9,224.82,2.54524375]
[1757556811564,7.21,224.88,224.82,2.54524375]
[1757556811764,7.21,224.86,224.82,9.84524375]
[1757556811964,10.28118811,224.85,224.82,9.84524375]
[1757556812261,7.21,224.85,224.82,9.84524375]
[1757556812463,7.21,224.9,224.82,9.84524375]
[1757556812671,7.21,224.88,224.82,2.54524375]
[1757556812965,6.59646239,224.87,224.82,2.54524375]
[1757556813163,7.21,224.85,224.82,2.54524375]
[1757556813465,10.28145319,224.84,224.82,2.54524375]
[1757556813665,7.21,224.84,224.82,2.54524375]
[1757556813865,7.21,224.9,224.82,2.54524375]
[1757556814061,2.0,224.91,224.82,2.54524375]
[1757556814062,7.21,224.88,224.82,2.54524375]
[1757556814263,6.59666905,224.87,224.82,2.54524375]
[1757556814466,6.59666905,224.86,224.82,2.54524375]
[1757556814660,7.21,224.84,224.82,2.54524375]
[1757556818270,3.07454919,224.83,224.82,2.54524375]
[1757556818871,10.28454919,224.83,224.82,2.54524375]
[1757556819067,3.07454919,224.83,224.82,2.54524375]
[1757556819371,3.07454919,224.83,224.82,9.84524375]
[1757556823674,7.21,224.86,224.82,9.84524375]
[1757556823873,10.73949335,224.85,224.82,9.84524375]
[1757556824075,3.52949335,224.84,224.82,7.3]
[1757556824370,7.21,224.85,224.82,7.3]
[1757556824572,3.52963033,224.84,224.82,7.3]
[1757556824874,7.21,224.85,224.82,7.3]
[1757556825074,3.52948239,224.84,224.82,7.3]
[1757556825374,7.21,224.85,224.82,7.3]
[1757556825574,3.52962018,224.84,224.82,7.3]
[1757556825776,7.21,224.85,224.82,7.3]
[1757556825973,3.52962262,224.84,224.82,7.3]
[1757556826170,7.21,224.85,224.82,7.3]
[1757556826377,3.52962547,224.84,224.82,7.3]
[1757556826677,7.21,224.85,224.82,7.3]
[1757556826879,3.07961918,224.83,224.82,7.3]
[1757556827277,7.21,224.88,224.82,7.3]
[1757556827577,3.53019022,224.87,224.82,7.3]
[1757556827781,7.21,224.89,224.85,7.3]
[1757556827974,10.74045912,224.88,224.85,7.3]
[1757556828178,3.53045912,224.87,224.85,7.3]
[1757556828379,9.21,224.91,224.85,7.3]
[1757556828573,3.53063507,224.9,224.84,2.54524375]
[1757556828775,3.53063507,224.89,224.87,2.54524375]
[1757556829079,3.53063507,224.88,224.87,2.54524375]
[1757556829278,3.53063507,224.88,224.87,9.84524375]
[1757556830380,6.6109413,224.88,224.87,9.84524375]
[1757556830581,3.08030623,224.88,224.87,9.84524375]
[1757556832779,7.21,224.89,224.78,7.3]
[1757556832975,7.21,224.87,224.83,9.84524375]
[1757556833190,3.07867736,224.86,224.83,7.3]
[1757556833387,7.21,224.84,224.81,2.54524375]
[1757556833584,3.07821925,224.83,224.79,7.3]
[1757556833885,10.28821925,224.82,224.79,7.3]
[1757556834079,7.21,224.82,224.79,7.3]
[1757556834681,3.07871453,224.81,224.76,2.54524375]
[1757556834882,7.21,224.81,224.77,7.3]
[1757556835088,3.07853653,224.8,224.77,7.3]
[1757556835283,7.21,224.81,224.77,7.3]
[1757556835577,3.07825382,224.8,224.77,7.3]
[1757556835781,7.21,224.81,224.77,7.3]
[1757556835978,3.07825382,224.8,224.77,7.3]
[1757556836178,7.21,224.81,224.77,7.3]
[1757556836379,3.0782681,224.8,224.76,2.54524375]
[1757556836585,7.21,224.81,224.76,2.54524375]
[1757556836792,3.07804295,224.8,224.77,7.3]
[1757556837092,7.21,224.81,224.77,7.24]
[1757556837284,7.21,224.81,224.76,2.54524375]
[1757556837485,7.21,224.81,224.77,7.24]
[1757556837686,7.21,224.81,224.76,2.54524375]
[1757556837993,7.21,224.81,224.77,7.24]
[1757556838190,7.21,224.81,224.76,2.54524375]
[1757556838392,7.21,224.81,224.77,7.24]
[1757556838783,7.21,224.81,224.76,2.54524375]
[1757556838983,7.21,224.81,224.77,7.24]
[1757556840492,7.21,224.81,224.76,2.54524375]
[1757556840686,7.21,224.81,224.77,7.24]
[1757556842495,7.21,224.81,224.77,9.78524375]
[1757556842997,7.22,224.88,224.77,9.78524375]
[1757556843189,7.22,224.86,224.77,2.54524375]
[1757556843396,7.22,224.84,224.77,2.54524375]
[1757556843694,6.60392793,224.83,224.77,2.54524375]
[1757556843991,7.22,224.81,224.77,2.54524375]
[1757556844199,3.07708692,224.8,224.77,9.78524375]
[1757556844496,4.98606013,224.88,224.77,9.78524375]
[1757556844694,7.22,224.86,224.77,9.78524375]
[1757556844896,7.22,224.84,224.77,9.78524375]
[1757556845095,6.6034133,224.83,224.77,9.78524375]
[1757556845296,7.22,224.81,224.77,9.78524375]
[1757556845503,3.07679479,224.8,224.77,9.78524375]
[1757556845799,7.22,224.81,224.77,9.78524375]
[1757556845998,3.07673939,224.8,224.77,9.78524375]
[1757556846198,7.22,224.81,224.77,9.78524375]
[1757556846397,3.07667484,224.8,224.77,9.78524375]
[1757556846598,7.22,224.81,224.77,9.78524375]
[1757556846800,3.07672204,224.8,224.77,9.78524375]
[1757556847003,7.22,224.81,224.77,9.78524375]
[1757556847204,3.07672204,224.8,224.77,9.78524375]
[1757556847404,113.80606013,224.89,224.77,9.78524375]
[1757556847706,7.22,224.87,224.77,9.78524375]
[1757556847904,7.22,224.85,224.77,9.78524375]
[1757556848106,7.22,224.83,224.77,9.78524375]
[1757556848305,7.22,224.81,224.77,9.78524375]
[1757556848508,10.29651759,224.8,224.77,9.78524375]
[1757556848697,7.22,224.8,224.77,9.78524375]
[1757556850404,12.20606013,224.88,224.77,2.54524375]
[1757556850707,7.22,224.86,224.77,2.54524375]
[1757556850898,7.22,224.84,224.77,2.54524375]
[1757556851099,4.98606013,224.87,224.77,2.54524375]
[1757556851100,13.7974972,224.83,224.77,2.54524375]
[1757556851306,7.22,224.81,224.78,7.24]
[1757556851603,7.22,224.84,224.78,7.24]
[1757556851809,3.06793349,224.83,224.81,7.24]
[1757556852012,3.06793349,224.82,224.8,2.54524375]
[1757556852212,3.06793349,224.81,224.8,2.54524375]
[1757556852410,7.22,224.83,224.8,2.54524375]
[1757556852608,7.22,224.81,224.8,2.54524375]
[1757556852808,10.28793349,224.81,224.8,2.54524375]
[1757556853008,3.06793349,224.81,224.8,9.78524375]
[1757556853210,10.28793349,224.83,224.8,9.78524375]
[1757556853508,3.06793349,224.82,224.8,9.78524375]
[1757556853708,3.06793349,224.81,224.8,9.78524375]
[1757556854004,3.06793349,224.82,224.8,9.78524375]
[1757556854306,6.98606013,224.91,224.8,2.54524375]
[1757556854513,22.16677173,224.9,224.8,2.54524375]
[1757556854715,7.22,224.88,224.8,2.54524375]
[1757556854910,7.22,224.86,224.8,2.54524375]
[1757556855112,7.22,224.84,224.8,9.78524375]
[1757556855309,3.06803558,224.83,224.8,9.78524375]
[1757556855513,3.06803558,224.82,224.8,9.78524375]
[1757556855717,7.22,224.84,224.81,7.24]
[1757556855912,3.06789507,224.83,224.81,7.24]
[1757556856112,3.06789507,224.82,224.81,7.24]
[1757556856314,3.06789507,224.82,224.81,8.86908821]
[1757556857819,7.22,224.87,224.81,8.86908821]
[1757556858013,7.22,224.87,224.86,1.62908821]
[1757556858221,10.729717,224.87,224.86,1.62908821]
[1757556860113,7.22,224.9,224.86,1.62908821]
[1757556860315,10.72975341,224.89,224.86,7.24]
[1757556860509,3.50975341,224.88,224.72,7.49079606]
[1757556860713,7.22,224.87,224.76,7.24]
[1757556861120,3.50936353,224.86,224.76,7.24]
[1757556861319,7.22,224.87,224.76,7.24]
[1757556861618,7.22,224.9,224.85,1.62908821]
[1757556861823,3.50933753,224.89,224.85,1.62908821]
[1757556862013,3.50933753,224.88,224.85,1.62908821]
[1757556862211,7.22,224.86,224.85,1.62908821]
[1757556865714,10.72998818,224.86,224.85,1.62908821]
[1757556867224,10.72998818,224.86,224.83,1.62908821]
[1757556867421,3.50998818,224.85,224.81,1.62908821]
[1757556867627,7.04,224.9,224.81,1.62908821]
[1757556867924,7.04,224.88,224.81,1.62908821]
[1757556868125,7.04,224.86,224.81,1.62908821]
[1757556868321,3.50991517,224.85,224.81,1.62908821]
[1757556868526,7.04,224.89,224.81,1.62908821]
[1757556868728,7.04,224.87,224.81,1.62908821]
[1757556868924,7.04,224.85,224.81,1.62908821]
[1757556869122,3.50956586,224.84,224.81,1.62908821]
[1757556869318,4.98606013,224.89,224.81,1.62908821]
[1757556869319,7.04,224.82,224.81,1.62908821]
[1757556869930,10.09435966,224.82,224.81,1.62908821]
[1757556875632,3.05435966,224.82,224.81,9.06908821]
[1757556876524,3.05496581,224.82,224.81,9.06908821]
[1757556883433,3.05496581,224.82,224.81,1.62908821]
[1757556884135,10.09496581,224.82,224.81,1.62908821]
[1757556885830,6.5805868,224.82,224.79,1.62908821]
[1757556886032,10.09496581,224.81,224.79,1.62908821]
[1757556886333,3.05496581,224.8,224.79,1.62908821]
[1757556890940,6.61514834,224.88,224.79,9.06908821]
[1757556891140,7.04,224.86,224.79,9.06908821]
[1757556891341,3.52549149,224.85,224.79,9.06908821]
[1757556891541,3.52549149,224.84,224.79,9.06908821]
[1757556891741,7.04,224.82,224.79,9.06908821]
[1757556891942,1.62908821,224.88,224.79,9.06908821]
[1757556892241,6.90708405,224.87,224.79,9.06908821]
[1757556892445,7.04,224.85,224.81,1.62908821]
[1757556892641,3.52555053,224.84,224.82,7.44]
[1757556892839,3.52555053,224.83,224.82,7.44]
[1757556894644,3.52555053,224.83,224.81,1.62908821]
[1757556894841,7.04,224.83,224.81,1.62908821]
[1757556898447,7.1,224.89,224.81,1.62908821]
[1757556898840,10.1544127,224.82,224.81,1.62908821]
[1757556899144,7.1,224.82,224.81,1.62908821]
[1757556900142,7.1,224.82,224.79,1.62908821]
[1757556900348,1.62908821,224.82,224.73,1.62908821]
[1757556900541,7.1,224.81,224.73,1.62908821]
[1757556900741,7.1,224.81,224.66,35.46]
[1757556900742,7.1,224.81,224.75,1.62908821]
[1757556900938,7.1,224.81,224.77,1.62908821]
[1757556901143,7.1,224.84,224.77,1.62908821]
[1757556903151,3.05116832,224.83,224.77,1.62908821]
[1757556903347,3.52321625,224.82,224.77,1.62908821]
[1757556904251,7.1,224.82,224.77,1.62908821]
[1757556904650,3.05116832,224.83,224.77,1.62908821]
[1757556905048,7.1,224.82,224.77,1.62908821]
[1757556905445,7.24330067,224.81,224.75,8.77908821]
[1757556905647,7.1,224.79,224.75,8.77908821]
[1757556905850,7.1,224.82,224.75,8.77908821]
[1757556906050,7.25366325,224.81,224.75,8.77908821]
[1757556906350,7.25366325,224.8,224.75,8.77908821]
[1757556906551,7.1,224.78,224.75,8.77908821]
[1757556907248,7.1,224.82,224.77,1.62908821]
[1757556907547,7.2528569,224.81,224.79,8.77908821]
[1757556907747,3.05116832,224.83,224.79,1.62908821]
[1757556907945,7.1,224.81,224.79,1.62908821]
[1757556908146,3.05105673,224.8,224.79,1.62908821]
[1757556908347,10.15105673,224.8,224.79,1.62908821]
[1757556908547,17.39911661,224.8,224.79,1.62908821]
[1757556909155,10.29911661,224.8,224.77,1.62908821]
[1757556909355,7.1,224.78,224.75,1.62908821]
[1757556909554,6.56954848,224.79,224.75,1.62908821]
[1757556909555,3.05105673,224.77,224.75,1.62908821]
[1757556909755,7.1,224.82,224.75,1.62908821]
[1757556909956,7.1,224.8,224.75,1.62908821]
[1757556910156,7.1,224.78,224.75,1.62908821]
[1757556910457,6.56690445,224.77,224.73,1.62908821]
[1757556910655,1.62908821,224.82,224.73,1.62908821]
[1757556910656,3.05075362,224.76,224.73,1.62908821]
[1757556910856,7.1,224.81,224.73,1.62908821]
[1757556911056,7.1,224.79,224.73,1.62908821]
[1757556911357,7.1,224.77,224.73,1.62908821]
[1757556911556,7.1,224.75,224.7,7.15]
[1757556911752,7.1,224.79,224.71,1.62908821]
[1757556911957,7.1,224.77,224.71,1.62908821]
[1757556912153,7.1,224.75,224.71,1.62908821]
[1757556912353,3.04054918,224.74,224.71,8.77908821]
[1757556912557,7.1,224.79,224.71,8.77908821]
[1757556912760,7.1,224.77,224.71,8.77908821]
[1757556912959,7.1,224.75,224.71,8.77908821]
[1757556913257,10.13930942,224.74,224.71,8.77908821]
[1757556913454,7.1,224.74,224.71,8.77908821]
[1757556915051,7.1,224.79,224.71,1.62908821]
[1757556915257,7.1,224.77,224.71,1.62908821]
[1757556915452,7.1,224.75,224.67,7.15]
[1757556915657,7.1,224.73,224.69,1.62908821]
[1757556915858,7.1,224.71,224.69,1.62908821]
[1757556916158,7.1,224.7,224.69,1.62908821]
[1757556918263,7.1,224.75,224.69,1.62908821]
[1757556918463,3.02788164,224.74,224.66,7.15]
[1757556918664,7.1,224.75,224.66,7.15]
[1757556918863,3.02806443,224.74,224.66,7.15]
[1757556919060,7.1,224.75,224.66,7.15]
[1757556919260,3.02747656,224.74,224.66,7.15]
[1757556919468,7.1,224.73,224.66,7.15]
[1757556921866,3.02460107,224.72,224.66,7.15]
[1757556922066,7.1,224.73,224.66,7.15]
[1757556922261,32.70866947,224.8,224.66,7.15]
[1757556922462,17.16648183,224.79,224.66,7.15]
[1757556922662,7.1,224.77,224.66,7.15]
[1757556922966,7.1,224.75,224.64,2.54866947]
[1757556923165,6.51983697,224.74,224.64,2.54866947]
[1757556923366,10.12457548,224.73,224.64,2.54866947]
[1757556923570,7.1,224.71,224.64,2.54866947]
[1757556924464,7.1,224.69,224.61,111.26866947]
[1757556924773,7.1,224.67,224.61,2.54866947]
[1757556925169,7.1,224.67,224.6,7.15]
[1757556926170,7.1,224.67,224.56,7.15]
[1757556926572,7.1,224.65,224.56,7.15]
[1757556927067,7.37,224.7,224.55,6.9]
[1757556927266,9.95458275,224.82,224.54,108.72]
[1757556927267,7.37,224.68,224.57,6.9]
[1757556927470,3.0203615,224.67,224.59,9.44866947]
[1757556927675,7.37,224.68,224.59,9.44866947]
[1757556927874,3.0197724,224.67,224.59,9.44866947]
[1757556928070,7.37,224.68,224.59,9.44866947]
[1757556928470,7.37,224.73,224.59,6.9]
[1757556928672,7.37,224.71,224.59,6.9]
[1757556928874,7.37,224.69,224.59,6.9]
[1757556929072,7.37,224.67,224.59,6.9]
[1757556937178,7.37,224.73,224.63,2.54866947]
[1757556937379,3.01637673,224.72,224.64,6.9]
[1757556937678,7.37,224.73,224.64,6.9]
[1757556937880,3.0163843,224.72,224.64,6.9]
[1757556938181,7.37,224.73,224.64,6.9]
[1757556938473,7.37,224.71,224.64,6.9]
[1757556941474,2.54866947,224.75,224.6,9.44866947]
[1757556941680,7.37,224.73,224.6,9.44866947]
[1757556941978,7.37,224.7,224.6,9.44866947]
[1757556942183,2.54866947,224.75,224.6,9.44866947]
[1757556942476,7.37,224.73,224.6,9.44866947]
[1757556942678,10.04236188,224.72,224.6,9.44866947]
[1757556942881,6.48247941,224.71,224.6,9.44866947]
[1757556943180,7.37,224.69,224.6,9.44866947]
[1757556943578,2.54866947,224.75,224.6,9.44866947]
[1757556943875,10.04380184,224.74,224.6,9.44866947]
[1757556944072,7.37,224.72,224.6,9.44866947]
[1757556944270,7.37,224.7,224.6,9.44866947]
[1757556944470,7.37,224.68,224.6,6.9]
[1757556947578,7.37,224.68,224.61,6.9]
[1757556949284,3.02112066,224.67,224.61,6.9]
[1757556949476,7.37,224.68,224.61,6.9]
[1757556949677,3.02116742,224.67,224.61,6.9]
[1757556949976,7.37,224.68,224.61,6.9]
[1757556950282,3.02116873,224.67,224.61,6.9]
[1757556950482,7.37,224.68,224.61,6.9]
[1757556950779,3.02214769,224.67,224.61,6.9]
[1757556950977,7.37,224.68,224.61,6.9]
[1757556952078,7.37,224.76,224.61,6.9]
[1757556952283,7.37,224.74,224.61,6.9]
[1757556952581,7.37,224.72,224.61,6.9]
[1757556952771,6.49204076,224.71,224.61,6.9]
[1757556952975,3.02455252,224.7,224.61,6.9]
[1757556953182,3.02455252,224.69,224.61,6.9]
[1757556953383,3.02455252,224.68,224.61,6.9]
[1757556953585,7.37,224.72,224.61,6.9]
[1757556953774,6.49579192,224.71,224.64,6.9]
[1757556953977,3.02631379,224.7,224.64,6.9]
[1757556954283,3.02631379,224.69,224.63,2.54866947]
[1757556954582,3.02631379,224.68,224.63,2.54866947]
[1757556954780,7.37,224.72,224.64,6.9]
[1757556954979,6.49875221,224.71,224.64,6.9]
[1757556955179,3.02763247,224.7,224.64,6.9]
[1757556955379,3.02763247,224.69,224.63,2.54866947]
[1757556955578,7.37,224.72,224.55,0.77480546]
[1757556955579,3.02763247,224.68,224.56,6.9]
[1757556955775,7.37,224.72,224.64,6.9]
[1757556955980,6.50305066,224.71,224.64,6.9]
[1757556956278,6.50305066,224.7,224.64,6.9]
[1757556956478,3.02969164,224.69,224.63,2.54866947]
[1757556956679,3.02969164,224.68,224.63,2.54866947]
[1757556956880,3.02969164,224.67,224.63,2.54866947]
[1757556957083,7.37,224.72,224.64,6.93]
[1757556957291,10.07537779,224.71,224.64,6.93]
[1757556957481,6.50504249,224.7,224.64,6.93]
[1757556957677,6.50504249,224.69,224.63,2.54866947]
[1757556957882,3.030617,224.68,224.63,2.54866947]
[1757556958082,3.030617,224.67,224.63,2.54866947]
[1757556958285,7.02,224.71,224.64,6.93]
[1757556958487,6.50970851,224.7,224.64,6.93]
[1757556958685,3.0329035,224.69,224.63,2.54866947]
[1757556958882,3.0329035,224.68,224.63,2.54866947]
[1757556959078,3.0329035,224.67,224.63,2.54866947]
[1757556959277,7.02,224.71,224.64,6.93]
[1757556959481,7.02,224.69,224.64,6.93]
[1757556959679,3.47842648,224.68,224.6,9.47866947]
[1757556959891,3.03418157,224.67,224.6,9.47866947]
[1757556960290,7.02,224.69,224.6,9.47866947]
[1757556960489,3.4792721,224.68,224.6,9.47866947]
[1757556960690,7.02,224.69,224.6,9.47866947]
[1757556960888,3.4792721,224.68,224.6,9.47866947]
[1757556961089,7.02,224.69,224.6,9.47866947]
[1757556961385,3.03575665,224.67,224.6,9.47866947]
[1757556962390,3.0355426,224.66,224.61,6.93]
[1757556963190,3.03575665,224.67,224.61,6.93]
[1757556963385,3.03640941,224.66,224.6,2.54866947]
[1757556963591,3.03575665,224.67,224.61,6.93]
[1757556963792,3.03645385,224.66,224.61,6.93]
[1757556964091,3.03575665,224.67,224.61,6.93]
[1757556964393,3.03645385,224.66,224.61,6.93]
[1757556964692,3.03575665,224.67,224.61,6.93]
[1757556964892,3.03735321,224.66,224.6,2.54866947]
[1757556965092,3.03735321,224.65,224.61,6.93]
[1757556965286,3.03575665,224.67,224.61,6.93]
[1757556965489,3.03796914,224.66,224.61,6.93]
[1757556965689,3.03796914,224.65,224.6,2.54866947]
[1757556965885,3.03575665,224.67,224.61,6.93]
[1757556966189,3.03796914,224.66,224.6,2.54866947]
[1757556966386,3.03796914,224.65,224.61,6.93]
[1757556966589,3.03575665,224.67,224.61,6.93]
[1757556966784,3.03881296,224.66,224.6,2.54866947]
[1757556966989,3.03575665,224.67,224.61,6.93]
[1757556967193,3.03881296,224.66,224.6,2.54866947]
[1757556967392,3.03933986,224.65,224.6,2.54866947]
[1757556967587,10.05575665,224.67,224.61,6.93]
[1757556967794,3.03933986,224.66,224.61,6.93]
[1757556967991,3.03933986,224.65,224.61,6.93]
[1757556968194,10.05575665,224.67,224.61,6.93]
[1757556968393,6.56521056,224.66,224.6,2.54866947]
[1757556968596,3.03980411,224.65,224.6,2.54866947]
[1757556968800,3.03980411,224.64,224.61,6.93]
[1757556969099,10.05575665,224.67,224.61,6.93]
[1757556969399,6.56514608,224.66,224.6,9.47866947]
[1757556969602,10.05971342,224.65,224.61,6.93]
[1757556969803,13.58521669,224.64,224.56,9.47866947]
[1757556969994,13.58517343,224.63,224.56,9.47866947]
[1757556970194,3.03971342,224.62,224.56,9.47866947]
[1757556970400,3.03575665,224.67,224.6,6.93]
[1757556970593,7.02,224.65,224.61,9.47866947]
[1757556970796,3.05020101,224.64,224.61,9.47866947]
[1757556970992,7.02,224.65,224.62,6.93]
[1757556971194,3.05009826,224.64,224.62,6.93]
[1757556971394,7.02,224.65,224.62,6.93]
[1757556971599,3.05021539,224.64,224.62,6.93]
[1757556971794,7.02,224.65,224.62,6.93]
[1757556971999,3.05021539,224.64,224.62,6.93]
[1757556972199,7.02,224.65,224.62,6.93]
[1757556972395,3.05045596,224.64,224.62,6.93]
[1757556972600,10.07045596,224.63,224.59,9.47866947]
[1757556972796,10.07030787,224.62,224.59,6.93]
[1757556973007,7.02,224.62,224.59,6.93]
[1757556973207,7.02,224.66,224.59,6.93]
[1757556973404,6.57345125,224.65,224.59,6.93]
[1757556973607,7.02,224.66,224.58,6.93]
[1757556973608,6.57345125,224.64,224.58,6.93]
[1757556973809,3.04923687,224.63,224.58,6.93]
[1757556974104,7.02,224.66,224.61,6.93]
[1757556974307,6.57400274,224.65,224.6,2.54866947]
[1757556974607,10.06949601,224.64,224.61,6.93]
[1757556974909,3.04949601,224.63,224.61,6.93]
[1757556975703,3.04949601,224.63,224.6,2.54866947]
[1757556975911,10.06949601,224.63,224.6,2.54866947]
[1757556976106,7.02,224.63,224.6,2.54866947]